fUSD/lending_fUSD_20260518
["ID","MTS","AMOUNT","RATE_DAILY","PERIOD"]
[422560378,1779083611000,-223.50874349,0.00040145,120]
[422560394,1779083611000,-1332.36263324,0.00040145,30]
[422560407,1779083612000,-158.15843882,0.00040145,90]
[422560408,1779083612000,-1592.75018779,0.00040145,120]
[422560411,1779083612000,-61076.3266694,0.00040145,40]
[422560410,1779083612000,-309.91,0.00040145,120]
[422560409,1779083612000,-952.29093124,0.00040145,120]
[422560405,1779083612000,-1211.7625465,0.00040145,60]
[422560406,1779083612000,-643.39630996,0.00040145,30]
[422560404,1779083612000,-4740.7122479,0.00040145,30]
[422560399,1779083612000,-12356.52195783,0.00040145,120]
[422560402,1779083612000,-550.76731729,0.00040145,30]
[422560401,1779083612000,-935.88357377,0.00040145,30]
[422560400,1779083612000,-410.18357615,0.00040145,30]
[422560397,1779083612000,-163.18840191,0.00040145,31]
[422560398,1779083612000,-101151.05935656,0.00040145,30]
[422560396,1779083612000,-513.09396624,0.00040145,49]
[422560395,1779083612000,-1940.36602258,0.00040145,30]
[422560412,1779083612000,-500.0,0.00040145,120]
[422560403,1779083612000,-444.37873786,0.00040145,120]
[422560414,1779083612000,-500.0,0.00040145,120]
[422560413,1779083612000,-500.0,0.00040145,120]
[422560415,1779083612000,-500.0,0.00040145,120]
[422560434,1779083612000,-50000.0,0.00040145,49]
[422560433,1779083612000,-513.16728011,0.00040145,120]
[422560431,1779083612000,-500.0,0.00040145,120]
[422560429,1779083612000,-273.51692486,0.00040145,60]
[422560430,1779083612000,-500.0,0.00040145,120]
[422560428,1779083612000,-8951.7470091,0.00040145,120]
[422560426,1779083612000,-576.56348645,0.00040145,120]
[422560427,1779083612000,-2952.269619,0.00040145,120]
[422560425,1779083612000,-500.0,0.00040145,120]
[422560432,1779083612000,-500.0,0.00040145,120]
[422560424,1779083612000,-500.0,0.00040145,120]
[422560423,1779083612000,-500.0,0.00040145,120]
[422560421,1779083612000,-500.0,0.00040145,120]
[422560420,1779083612000,-500.0,0.00040145,120]
[422560419,1779083612000,-500.0,0.00040145,120]
[422560417,1779083612000,-500.0,0.00040145,120]
[422560418,1779083612000,-500.0,0.00040145,120]
[422560416,1779083612000,-500.0,0.00040145,120]
[422560422,1779083612000,-500.0,0.00040145,120]
[422560442,1779083613000,-315457.09,0.00040145,120]
[422560448,1779083613000,-500.0,0.00040145,120]
[422560450,1779083613000,-599.56800096,0.00040145,120]
[422560449,1779083613000,-500.0,0.00040145,120]
[422560451,1779083613000,-6393.0,0.00040145,120]
[422560446,1779083613000,-500.0,0.00040145,120]
[422560447,1779083613000,-499.58088027,0.00040145,120]
[422560444,1779083613000,-159.90381995,0.00040145,120]
[422560438,1779083613000,-50000.0,0.00040145,53]
[422560443,1779083613000,-1000.0,0.00040145,30]
[422560441,1779083613000,-261.20209355,0.00040145,120]
[422560440,1779083613000,-50000.0,0.00040145,55]
[422560439,1779083613000,-50000.0,0.00040145,54]
[422560437,1779083613000,-50000.0,0.00040145,52]
[422560436,1779083613000,-50000.0,0.00040145,51]
[422560435,1779083613000,-50000.0,0.00040145,50]
[422560452,1779083613000,-500.0,0.00040145,120]
[422560445,1779083613000,-500.0,0.00040145,120]
[422560453,1779083613000,-500.0,0.00040145,120]
[422560474,1779083613000,-6219.27,0.00040145,120]
[422560456,1779083613000,-6219.27,0.00040145,120]
[422560454,1779083613000,-499.58,0.00040145,120]
[422560473,1779083613000,-6219.27,0.00040145,120]
[422560471,1779083613000,-6219.27,0.00040145,120]
[422560472,1779083613000,-6219.27,0.00040145,120]
[422560470,1779083613000,-6219.27,0.00040145,120]
[422560468,1779083613000,-6219.27,0.00040145,120]
[422560469,1779083613000,-6219.27,0.00040145,120]
[422560466,1779083613000,-6219.27,0.00040145,120]
[422560464,1779083613000,-6219.27,0.00040145,120]
[422560467,1779083613000,-6219.27,0.00040145,120]
[422560463,1779083613000,-6219.27,0.00040145,120]
[422560465,1779083613000,-6219.27,0.00040145,120]
[422560455,1779083613000,-6219.27,0.00040145,120]
[422560459,1779083613000,-6219.27,0.00040145,120]
[422560458,1779083613000,-6219.27,0.00040145,120]
[422560457,1779083613000,-6219.27,0.00040145,120]
[422560460,1779083613000,-6219.27,0.00040145,120]
[422560462,1779083613000,-6219.27,0.00040145,120]
[422560461,1779083613000,-6219.27,0.00040145,120]
[422560486,1779083614000,-5206.35,0.00040145,120]
[422560492,1779083614000,-5206.35,0.00040145,120]
[422560489,1779083614000,-5206.35,0.00040145,120]
[422560490,1779083614000,-5206.35,0.00040145,120]
[422560487,1779083614000,-5206.35,0.00040145,120]
[422560488,1779083614000,-5206.35,0.00040145,120]
[422560483,1779083614000,-5206.35,0.00040145,120]
[422560485,1779083614000,-5206.35,0.00040145,120]
[422560491,1779083614000,-5206.35,0.00040145,120]
[422560482,1779083614000,-5206.35,0.00040145,120]
[422560481,1779083614000,-7000.0,0.00040145,30]
[422560479,1779083614000,-463.0,0.00040145,120]
[422560480,1779083614000,-8257.85016241,0.00040145,120]
[422560477,1779083614000,-6219.27,0.00040145,120]
[422560478,1779083614000,-6219.47076406,0.00040145,120]
[422560475,1779083614000,-6219.27,0.00040145,120]
[422560476,1779083614000,-6219.27,0.00040145,120]
[422560484,1779083614000,-5206.35,0.00040145,120]
[422560493,1779083614000,-5206.35,0.00040145,120]
[422560494,1779083614000,-5206.35,0.00040145,120]
[422560495,1779083614000,-5206.35,0.00040145,120]
[422560512,1779083614000,-500.0,0.00040145,120]
[422560510,1779083614000,-500.0,0.00040145,120]
[422560511,1779083614000,-500.0,0.00040145,120]
[422560509,1779083614000,-500.0,0.00040145,120]
[422560506,1779083614000,-500.0,0.00040145,120]
[422560508,1779083614000,-500.0,0.00040145,120]
[422560507,1779083614000,-500.0,0.00040145,120]
[422560504,1779083614000,-5206.35,0.00040145,120]
[422560513,1779083614000,-500.0,0.00040145,120]
[422560502,1779083614000,-5206.35,0.00040145,120]
[422560503,1779083614000,-5206.35,0.00040145,120]
[422560500,1779083614000,-5206.35,0.00040145,120]
[422560501,1779083614000,-5206.35,0.00040145,120]
[422560499,1779083614000,-5206.35,0.00040145,120]
[422560498,1779083614000,-5206.35,0.00040145,120]
[422560496,1779083614000,-5206.35,0.00040145,120]
[422560497,1779083614000,-5206.35,0.00040145,120]
[422560505,1779083614000,-5206.58893972,0.00040145,120]
[422560526,1779083615000,-2505.08,0.00040145,120]
[422560527,1779083615000,-2505.08,0.00040145,120]
[422560530,1779083615000,-2505.08,0.00040145,120]
[422560529,1779083615000,-2505.08,0.00040145,120]
[422560531,1779083615000,-2505.08,0.00040145,120]
[422560525,1779083615000,-2505.08,0.00040145,120]
[422560528,1779083615000,-2505.08,0.00040145,120]
[422560524,1779083615000,-2505.08,0.00040145,120]
[422560518,1779083615000,-500.0,0.00040145,120]
[422560523,1779083615000,-2505.08,0.00040145,120]
[422560521,1779083615000,-500.0,0.00040145,120]
[422560520,1779083615000,-397.0465064,0.00040145,120]
[422560519,1779083615000,-500.0,0.00040145,120]
[422560515,1779083615000,-500.0,0.00040145,120]
[422560517,1779083615000,-500.0,0.00040145,120]
[422560516,1779083615000,-500.0,0.00040145,120]
[422560533,1779083615000,-2505.08,0.00040145,120]
[422560522,1779083615000,-500.0,0.00040145,120]
[422560532,1779083615000,-2505.08,0.00040145,120]
[422560514,1779083615000,-500.0,0.00040145,120]
[422560534,1779083615000,-2505.08,0.00040145,120]
[422560551,1779083615000,-4034.0,0.00040145,30]
[422560552,1779083615000,-1000.0,0.00040145,60]
[422560549,1779083615000,-128319.13,0.00040145,120]
[422560550,1779083615000,-1000.0,0.00040145,120]
[422560547,1779083615000,-257.0,0.00040145,120]
[422560548,1779083615000,-161.0,0.00040145,120]
[422560546,1779083615000,-2505.23543749,0.00040145,120]
[422560545,1779083615000,-2505.08,0.00040145,120]
[422560553,1779083615000,-1095.0,0.00040145,120]
[422560543,1779083615000,-2505.08,0.00040145,120]
[422560544,1779083615000,-2505.08,0.00040145,120]
[422560536,1779083615000,-2505.08,0.00040145,120]
[422560537,1779083615000,-2505.08,0.00040145,120]
[422560539,1779083615000,-2505.08,0.00040145,120]
[422560535,1779083615000,-2505.08,0.00040145,120]
[422560538,1779083615000,-2505.08,0.00040145,120]
[422560540,1779083615000,-2505.08,0.00040145,120]
[422560542,1779083615000,-2505.08,0.00040145,120]
[422560541,1779083615000,-2505.08,0.00040145,120]
[422560573,1779083616000,-500.0,0.00040145,120]
[422560569,1779083616000,-500.0,0.00040145,120]
[422560568,1779083616000,-500.0,0.00040145,120]
[422560566,1779083616000,-500.0,0.00040145,120]
[422560567,1779083616000,-500.0,0.00040145,120]
[422560564,1779083616000,-500.0,0.00040145,120]
[422560565,1779083616000,-500.0,0.00040145,120]
[422560562,1779083616000,-500.0,0.00040145,120]
[422560560,1779083616000,-500.0,0.00040145,120]
[422560561,1779083616000,-500.0,0.00040145,120]
[422560559,1779083616000,-500.0,0.00040145,120]
[422560557,1779083616000,-500.0,0.00040145,120]
[422560555,1779083616000,-5100.0,0.00040145,38]
[422560556,1779083616000,-500.0,0.00040145,120]
[422560554,1779083616000,-1000.0,0.00040145,30]
[422560570,1779083616000,-500.0,0.00040145,120]
[422560563,1779083616000,-500.0,0.00040145,120]
[422560558,1779083616000,-500.0,0.00040145,120]
[422560574,1779083616000,-500.0,0.00040145,120]
[422560572,1779083616000,-500.0,0.00040145,120]
[422560571,1779083616000,-500.0,0.00040145,120]
[422560591,1779083616000,-4896.47,0.00040145,120]
[422560590,1779083616000,-4896.47,0.00040145,120]
[422560588,1779083616000,-4896.47,0.00040145,120]
[422560589,1779083616000,-4896.47,0.00040145,120]
[422560585,1779083616000,-4896.47,0.00040145,120]
[422560586,1779083616000,-4896.47,0.00040145,120]
[422560583,1779083616000,-204.61034526,0.00040145,120]
[422560587,1779083616000,-4896.47,0.00040145,120]
[422560582,1779083616000,-20000.0,0.00040145,120]
[422560584,1779083616000,-4896.47,0.00040145,120]
[422560575,1779083616000,-514.87724117,0.00040145,120]
[422560577,1779083616000,-513.89741178,0.00040145,60]
[422560578,1779083616000,-175.88,0.00040145,30]
[422560576,1779083616000,-10000.47125863,0.00040145,120]
[422560581,1779083616000,-509.76074677,0.00040145,120]
[422560580,1779083616000,-5000.00173252,0.00040145,60]
[422560579,1779083616000,-256.40426633,0.00040145,120]
[422560603,1779083617000,-4896.47,0.00040145,120]
[422560609,1779083617000,-500.0,0.00040145,120]
[422560608,1779083617000,-500.0,0.00040145,120]
[422560607,1779083617000,-4896.47813606,0.00040145,120]
[422560606,1779083617000,-4896.47,0.00040145,120]
[422560605,1779083617000,-4896.47,0.00040145,120]
[422560604,1779083617000,-4896.47,0.00040145,120]
[422560602,1779083617000,-4896.47,0.00040145,120]
[422560611,1779083617000,-500.0,0.00040145,120]
[422560598,1779083617000,-4896.47,0.00040145,120]
[422560599,1779083617000,-4896.47,0.00040145,120]
[422560597,1779083617000,-4896.47,0.00040145,120]
[422560600,1779083617000,-4896.47,0.00040145,120]
[422560594,1779083617000,-4896.47,0.00040145,120]
[422560596,1779083617000,-4896.47,0.00040145,120]
[422560593,1779083617000,-4896.47,0.00040145,120]
[422560592,1779083617000,-4896.47,0.00040145,120]
[422560601,1779083617000,-4896.47,0.00040145,120]
[422560612,1779083617000,-500.0,0.00040145,120]
[422560595,1779083617000,-4896.47,0.00040145,120]
[422560614,1779083617000,-500.0,0.00040145,120]
[422560631,1779083617000,-908.55,0.00040145,120]
[422560629,1779083617000,-76403.33309218,0.00040145,30]
[422560630,1779083617000,-7673.16036625,0.00040145,30]
[422560627,1779083617000,-286.21,0.00040145,120]
[422560628,1779083617000,-826.48677843,0.00040145,120]
[422560625,1779083617000,-500.0,0.00040145,120]
[422560626,1779083617000,-267.41426158,0.00040145,120]
[422560624,1779083617000,-500.0,0.00040145,120]
[422560623,1779083617000,-500.0,0.00040145,120]
[422560610,1779083617000,-500.0,0.00040145,120]
[422560621,1779083617000,-500.0,0.00040145,120]
[422560613,1779083617000,-500.0,0.00040145,120]
[422560615,1779083617000,-500.0,0.00040145,120]
[422560616,1779083617000,-500.0,0.00040145,120]
[422560622,1779083617000,-500.0,0.00040145,120]
[422560619,1779083617000,-500.0,0.00040145,120]
[422560617,1779083617000,-500.0,0.00040145,120]
[422560618,1779083617000,-500.0,0.00040145,120]
[422560620,1779083617000,-500.0,0.00040145,120]
[422560642,1779083618000,-908.55,0.00040145,120]
[422560648,1779083618000,-908.55,0.00040145,120]
[422560646,1779083618000,-908.55,0.00040145,120]
[422560645,1779083618000,-908.55,0.00040145,120]
[422560643,1779083618000,-908.55,0.00040145,120]
[422560641,1779083618000,-908.55,0.00040145,120]
[422560644,1779083618000,-908.55,0.00040145,120]
[422560640,1779083618000,-908.55,0.00040145,120]
[422560636,1779083618000,-908.55,0.00040145,120]
[422560638,1779083618000,-908.55,0.00040145,120]
[422560637,1779083618000,-908.55,0.00040145,120]
[422560647,1779083618000,-908.55,0.00040145,120]
[422560635,1779083618000,-908.55,0.00040145,120]
[422560634,1779083618000,-908.55,0.00040145,120]
[422560633,1779083618000,-908.55,0.00040145,120]
[422560632,1779083618000,-908.55,0.00040145,120]
[422560639,1779083618000,-908.55,0.00040145,120]
[422560649,1779083618000,-908.55,0.00040145,120]
[422560650,1779083618000,-908.55,0.00040145,120]
[422560651,1779083618000,-908.55,0.00040145,120]
[422560670,1779083618000,-11638.8649977,0.00040145,30]
[422560669,1779083618000,-345075.35580728,0.00040145,30]
[422560668,1779083618000,-6140.35636033,0.00040145,30]
[422560665,1779083618000,-173333.18033705,0.00040145,60]
[422560652,1779083618000,-908.55,0.00040145,120]
[422560666,1779083618000,-8074.52360452,0.00040145,30]
[422560664,1779083618000,-7918.71912777,0.00040145,30]
[422560663,1779083618000,-20369.42211092,0.00040145,30]
[422560662,1779083618000,-137279.48180996,0.00040145,30]
[422560667,1779083618000,-715951.12131724,0.00040145,30]
[422560660,1779083618000,-50000.0,0.00040145,58]
[422560658,1779083618000,-50000.0,0.00040145,56]
[422560659,1779083618000,-50000.0,0.00040145,57]
[422560656,1779083618000,-17451.60945922,0.00040145,30]
[422560657,1779083618000,-192.32355756,0.00040145,60]
[422560655,1779083618000,-499.785,0.00040145,120]
[422560654,1779083618000,-908.76230869,0.00040145,120]
[422560653,1779083618000,-908.55,0.00040145,120]
[422560661,1779083618000,-87358.68266393,0.00040145,30]
[422560681,1779083619000,-500.0,0.00040145,120]
[422560679,1779083619000,-500.0,0.00040145,120]
[422560677,1779083619000,-500.0,0.00040145,120]
[422560680,1779083619000,-500.0,0.00040145,120]
[422560672,1779083619000,-5587.66599139,0.00040145,30]
[422560674,1779083619000,-17809.06574454,0.00040145,30]
[422560676,1779083619000,-500.0,0.00040145,120]
[422560673,1779083619000,-499.76,0.00040145,120]
[422560671,1779083619000,-499325.42469637,0.00040145,30]
[422560675,1779083619000,-2000.0,0.00040145,31]
[422560683,1779083619000,-1181.76,0.00040145,120]
[422560678,1779083619000,-375.9502,0.00040145,120]
[422560684,1779083619000,-1181.76,0.00040145,120]
[422560682,1779083619000,-1181.76,0.00040145,120]
[422560692,1779083619000,-1181.76,0.00040145,120]
[422560693,1779083619000,-1181.76,0.00040145,120]
[422560694,1779083619000,-165.36246286,0.00040145,120]
[422560691,1779083619000,-1181.76,0.00040145,120]
[422560686,1779083619000,-1181.76,0.00040145,120]
[422560688,1779083619000,-1181.76,0.00040145,120]
[422560690,1779083619000,-1181.76,0.00040145,120]
[422560687,1779083619000,-1181.76,0.00040145,120]
[422560685,1779083619000,-1181.76,0.00040145,120]
[422560689,1779083619000,-1181.76,0.00040145,120]
[422560709,1779083629000,-500.0,0.00040145,120]
[422560708,1779083629000,-500.0,0.00040145,120]
[422560706,1779083629000,-1181.9317,0.00040145,120]
[422560704,1779083629000,-1181.76,0.00040145,120]
[422560703,1779083629000,-1181.76,0.00040145,120]
[422560702,1779083629000,-1181.76,0.00040145,120]
[422560711,1779083629000,-19993.20167828,0.00040145,120]
[422560700,1779083629000,-1181.76,0.00040145,120]
[422560699,1779083629000,-1181.76,0.00040145,120]
[422560698,1779083629000,-1181.76,0.00040145,120]
[422560697,1779083629000,-1181.76,0.00040145,120]
[422560695,1779083629000,-1016.39753714,0.00040145,120]
[422560696,1779083629000,-1181.76,0.00040145,120]
[422560701,1779083629000,-1181.76,0.00040145,120]
[422560710,1779083629000,-400.36574457,0.00040145,120]
[422560705,1779083629000,-1181.76,0.00040145,120]
[422560712,1779083629000,-19993.20167823,0.00040145,120]
[422560713,1779083629000,-19993.20167823,0.00040145,120]
[422560726,1779083629000,-500.0,0.00040145,120]
[422560725,1779083629000,-500.0,0.00040145,120]
[422560727,1779083629000,-500.0,0.00040145,120]
[422560724,1779083629000,-500.0,0.00040145,120]
[422560723,1779083629000,-500.29499999,0.00040145,120]
[422560722,1779083629000,-500.0,0.00040145,120]
[422560707,1779083629000,-500.0,0.00040145,120]
[422560720,1779083629000,-19993.20167823,0.00040145,120]
[422560719,1779083629000,-19993.20167823,0.00040145,120]
[422560718,1779083629000,-19993.20167823,0.00040145,120]
[422560716,1779083629000,-19993.20167823,0.00040145,120]
[422560717,1779083629000,-19993.20167823,0.00040145,120]
[422560714,1779083629000,-19993.20167823,0.00040145,120]
[422560715,1779083629000,-19993.20167823,0.00040145,120]
[422560721,1779083629000,-258.17721119,0.00040145,30]
[422560744,1779083630000,-396.87866147,0.00040145,120]
[422560743,1779083630000,-396.87866147,0.00040145,120]
[422560742,1779083630000,-396.87866147,0.00040145,120]
[422560741,1779083630000,-396.87866147,0.00040145,120]
[422560740,1779083630000,-396.87866147,0.00040145,120]
[422560739,1779083630000,-396.87866147,0.00040145,120]
[422560737,1779083630000,-396.87866147,0.00040145,120]
[422560738,1779083630000,-396.87866147,0.00040145,120]
[422560734,1779083630000,-396.87866147,0.00040145,120]
[422560733,1779083630000,-497.11281428,0.00040145,120]
[422560735,1779083630000,-396.87866147,0.00040145,120]
[422560732,1779083630000,-500.0,0.00040145,120]
[422560730,1779083630000,-500.0,0.00040145,120]
[422560729,1779083630000,-500.0,0.00040145,120]
[422560728,1779083630000,-500.0,0.00040145,120]
[422560745,1779083630000,-396.87866147,0.00040145,120]
[422560736,1779083630000,-396.87866147,0.00040145,120]
[422560731,1779083630000,-500.0,0.00040145,120]
[422560746,1779083630000,-396.87866147,0.00040145,120]
[422560749,1779083630000,-212.14634669,0.00040145,120]
[422560747,1779083630000,-396.87866147,0.00040145,120]
[422560764,1779083630000,-587.62,0.00040145,120]
[422560762,1779083630000,-429.70878965,0.00040145,120]
[422560763,1779083630000,-2371.63768349,0.00040145,120]
[422560761,1779083630000,-500.0,0.00040145,120]
[422560759,1779083630000,-500.0,0.00040145,120]
[422560758,1779083630000,-500.0,0.00040145,120]
[422560760,1779083630000,-500.0,0.00040145,120]
[422560765,1779083630000,-587.62,0.00040145,120]
[422560755,1779083630000,-500.0,0.00040145,120]
[422560756,1779083630000,-500.0,0.00040145,120]
[422560754,1779083630000,-18568.43566,0.00040145,30]
[422560753,1779083630000,-44122.71176796,0.00040145,30]
[422560750,1779083630000,-212.14634669,0.00040145,120]
[422560752,1779083630000,-640203.14009906,0.00040145,30]
[422560751,1779083630000,-212.14634669,0.00040145,120]
[422560748,1779083630000,-396.87866147,0.00040145,120]
[422560757,1779083630000,-500.0,0.00040145,120]
[422560781,1779083631000,-587.62,0.00040145,120]
[422560777,1779083631000,-587.62,0.00040145,120]
[422560778,1779083631000,-587.62,0.00040145,120]
[422560773,1779083631000,-587.62,0.00040145,120]
[422560775,1779083631000,-587.62,0.00040145,120]
[422560776,1779083631000,-587.62,0.00040145,120]
[422560771,1779083631000,-587.62,0.00040145,120]
[422560772,1779083631000,-587.62,0.00040145,120]
[422560770,1779083631000,-587.62,0.00040145,120]
[422560767,1779083631000,-587.62,0.00040145,120]
[422560769,1779083631000,-587.62,0.00040145,120]
[422560768,1779083631000,-587.62,0.00040145,120]
[422560766,1779083631000,-587.62,0.00040145,120]
[422560779,1779083631000,-587.62,0.00040145,120]
[422560774,1779083631000,-587.62,0.00040145,120]
[422560780,1779083631000,-587.62,0.00040145,120]
[422560785,1779083631000,-587.62,0.00040145,120]
[422560782,1779083631000,-587.62,0.00040145,120]
[422560783,1779083631000,-587.62,0.00040145,120]
[422560798,1779083631000,-500.0,0.00040145,120]
[422560796,1779083631000,-500.0,0.00040145,120]
[422560794,1779083631000,-500.0,0.00040145,120]
[422560795,1779083631000,-500.0,0.00040145,120]
[422560793,1779083631000,-500.0,0.00040145,120]
[422560792,1779083631000,-500.0,0.00040145,120]
[422560797,1779083631000,-500.0,0.00040145,120]
[422560791,1779083631000,-500.0,0.00040145,120]
[422560789,1779083631000,-500.0,0.00040145,120]
[422560788,1779083631000,-500.0,0.00040145,120]
[422560787,1779083631000,-587.82059639,0.00040145,120]
[422560786,1779083631000,-587.62,0.00040145,120]
[422560784,1779083631000,-587.62,0.00040145,120]
[422560790,1779083631000,-500.0,0.00040145,120]
[422560812,1779083632000,-182.80543438,0.00040145,120]
[422560810,1779083632000,-160.71728929,0.00040145,120]
[422560808,1779083632000,-186.62277611,0.00040145,120]
[422560809,1779083632000,-154.89919095,0.00040145,120]
[422560807,1779083632000,-295.71656899,0.00040145,120]
[422560805,1779083632000,-211.12109442,0.00040145,120]
[422560803,1779083632000,-257.9002534,0.00040145,120]
[422560804,1779083632000,-72524.40989304,0.00040145,120]
[422560802,1779083632000,-500.0,0.00040145,120]
[422560801,1779083632000,-500.0,0.00040145,120]
[422560799,1779083632000,-500.0,0.00040145,120]
[422560800,1779083632000,-502.89595741,0.00040145,120]
[422560806,1779083632000,-192.46974758,0.00040145,120]
[422560813,1779083632000,-166.07178369,0.00040145,30]
[422560811,1779083632000,-196.76226427,0.00040145,120]
[422560814,1779083632000,-500.0,0.00040145,120]
[422560815,1779083632000,-173.75045505,0.00040145,120]
[422560828,1779083632000,-166.04533214,0.00040145,120]
[422560826,1779083632000,-164.24027499,0.00040145,120]
[422560827,1779083632000,-155.88551465,0.00040145,120]
[422560823,1779083632000,-232.77186236,0.00040145,120]
[422560824,1779083632000,-302.59107159,0.00040145,120]
[422560825,1779083632000,-326.80761418,0.00040145,120]
[422560820,1779083632000,-530.75566423,0.00040145,120]
[422560821,1779083632000,-188.65421418,0.00040145,120]
[422560819,1779083632000,-500.0,0.00040145,120]
[422560817,1779083632000,-172.5592836,0.00040145,120]
[422560818,1779083632000,-356.34404004,0.00040145,120]
[422560816,1779083632000,-160.03726822,0.00040145,120]
[422560822,1779083632000,-199.85502599,0.00040145,120]
[422560838,1779083633000,-7511.25,0.00040145,120]
[422560842,1779083633000,-500.0,0.00040145,120]
[422560843,1779083633000,-7511.25,0.00040145,120]
[422560840,1779083633000,-7511.25,0.00040145,120]
[422560841,1779083633000,-7511.25,0.00040145,120]
[422560839,1779083633000,-407.6644968,0.00040145,30]
[422560837,1779083633000,-7511.25,0.00040145,120]
[422560832,1779083633000,-7511.25,0.00040145,120]
[422560835,1779083633000,-7511.25,0.00040145,120]
[422560833,1779083633000,-7511.25,0.00040145,120]
[422560834,1779083633000,-7511.25,0.00040145,120]
[422560829,1779083633000,-166.1176274,0.00040145,120]
[422560831,1779083633000,-520.1840989,0.00040145,120]
[422560830,1779083633000,-7511.25,0.00040145,120]
[422560836,1779083633000,-7511.25,0.00040145,120]
[422560844,1779083633000,-181.59585871,0.00040145,120]
[422560845,1779083633000,-7511.25,0.00040145,120]
[422560846,1779083633000,-7511.25,0.00040145,120]
[422560849,1779083633000,-7511.25,0.00040145,120]
[422560863,1779083633000,-178.05511358,0.00040145,120]
[422560861,1779083633000,-242.88620736,0.00040145,120]
[422560862,1779083633000,-185.03687214,0.00040145,120]
[422560859,1779083633000,-194.16975696,0.00040145,120]
[422560860,1779083633000,-7511.30015478,0.00040145,120]
[422560857,1779083633000,-7511.25,0.00040145,120]
[422560856,1779083633000,-158.10080921,0.00040145,120]
[422560858,1779083633000,-7511.25,0.00040145,120]
[422560854,1779083633000,-7511.25,0.00040145,120]
[422560853,1779083633000,-7511.25,0.00040145,120]
[422560851,1779083633000,-7511.25,0.00040145,120]
[422560850,1779083633000,-7511.25,0.00040145,120]
[422560852,1779083633000,-7511.25,0.00040145,120]
[422560848,1779083633000,-170.47726612,0.00040145,120]
[422560847,1779083633000,-7511.25,0.00040145,120]
[422560855,1779083633000,-7511.25,0.00040145,120]
[422560882,1779083634000,-193.35437311,0.00040145,120]
[422560880,1779083634000,-154.09886749,0.00040145,120]
[422560879,1779083634000,-245.49686891,0.00040145,120]
[422560878,1779083634000,-207.31379619,0.00040145,120]
[422560876,1779083634000,-223.11799066,0.00040145,31]
[422560877,1779083634000,-245.64477719,0.00040145,120]
[422560875,1779083634000,-202.714842,0.00040145,120]
[422560874,1779083634000,-153.72247357,0.00040145,120]
[422560864,1779083634000,-193.20170777,0.00040145,120]
[422560872,1779083634000,-198.97948191,0.00040145,120]
[422560870,1779083634000,-155.91784779,0.00040145,120]
[422560869,1779083634000,-235.45418879,0.00040145,120]
[422560868,1779083634000,-154.50225794,0.00040145,120]
[422560865,1779083634000,-239.95478315,0.00040145,120]
[422560867,1779083634000,-193.53017617,0.00040145,120]
[422560866,1779083634000,-163.16192009,0.00040145,120]
[422560871,1779083634000,-166.09842539,0.00040145,120]
[422560883,1779083634000,-270.61348298,0.00040145,120]
[422560873,1779083634000,-373.68510128,0.00040145,120]
[422560884,1779083634000,-173.30989495,0.00040145,120]
[422560901,1779083634000,-291.06887228,0.00040145,120]
[422560900,1779083634000,-205.05101389,0.00040145,120]
[422560899,1779083634000,-175.1446406,0.00040145,120]
[422560895,1779083634000,-155.19419456,0.00040145,120]
[422560897,1779083634000,-266.82829528,0.00040145,120]
[422560896,1779083634000,-152.00865182,0.00040145,120]
[422560898,1779083634000,-615.76637986,0.00040145,120]
[422560891,1779083634000,-224.0,0.00040145,120]
[422560881,1779083634000,-164.14692388,0.00040145,30]